fUSD/lending_fUSD_20240116
["ID","MTS","AMOUNT","RATE_DAILY","PERIOD"]
[311805662,1705420262528,-629.7262561,0.00028,2]
[311805663,1705420262538,-629.7262561,0.00028,2]
[311805664,1705420262547,-629.7262561,0.00028,2]
[311805665,1705420262556,-629.7262561,0.00028,2]
[311805666,1705420262565,-629.7262561,0.00028,2]
[311805667,1705420262577,-629.7262561,0.00028,2]
[311805668,1705420262586,-629.7262561,0.00028,2]
[311805669,1705420262596,-629.7262561,0.00028,2]
[311805670,1705420262606,-629.7262561,0.00028,2]
[311805671,1705420262615,-629.7262561,0.00028,2]
[311805672,1705420262624,-629.7262561,0.00028,2]
[311805673,1705420262634,-629.7262561,0.00028,2]
[311805674,1705420262644,-629.7262561,0.00028,2]
[311805675,1705420262653,-629.7262561,0.00028,2]
[311805676,1705420262663,-629.7262561,0.00028,2]
[311805677,1705420262673,-629.7262561,0.00028,2]
[311805678,1705420262682,-629.7262561,0.00028,2]
[311805679,1705420262692,-629.7262561,0.00028,2]
[311805680,1705420262701,-629.7262561,0.00028,2]
[311805681,1705420262711,-629.7262561,0.00028,2]
[311805682,1705420262720,-629.7262561,0.00028,2]
[311805683,1705420262730,-629.7262561,0.00028,2]
[311805684,1705420262739,-629.7262561,0.00028,2]
[311805685,1705420263048,-629.7262561,0.00028,2]
[311805686,1705420263072,-629.7262561,0.00028,2]
[311805687,1705420263081,-629.7262561,0.00028,2]
[311805688,1705420263091,-629.7262561,0.00028,2]
[311805689,1705420263100,-629.7262561,0.00028,2]
[311805690,1705420263109,-629.7262561,0.00028,2]
[311805691,1705420263118,-629.7262561,0.00028,2]
[311805692,1705420263128,-629.7262561,0.00028,2]
[311805693,1705420263138,-5811.66,0.00028004,2]
[311805694,1705420263149,-1663.63,0.00028004,2]
[311805695,1705420263159,-3000.0,0.0002801,2]
[311805696,1705420263169,-153.425814,0.0002802,7]
[311805697,1705420263180,-3000.0,0.0002802,2]
[311805698,1705420263189,-3000.0,0.0002803,2]
[311805699,1705420263199,-10876.13,0.0002803,2]
[311805700,1705420263208,-3000.0,0.0002804,2]
[311805701,1705420263218,-3000.0,0.0002805,2]
[311805702,1705420263227,-3000.0,0.0002806,2]
[311805703,1705420263236,-3000.0,0.0002807,2]
[311805704,1705420263246,-3000.0,0.0002808,2]
[311805705,1705420263256,-3000.0,0.0002809,2]
[311805706,1705420263266,-2339.511647,0.000281,2]
[311805707,1705420263276,-3000.0,0.000281,2]
[311805708,1705420263285,-749.69,0.00028107,2]
[311805709,1705420263295,-3000.0,0.0002811,2]
[311805710,1705420263304,-3000.0,0.0002812,2]
[311805711,1705420263314,-151.0,0.00028126,2]
[311805712,1705420263325,-220.0,0.0002813,2]
[311805713,1705420263335,-219.0,0.0002813,2]
[311805714,1705420263346,-3000.0,0.0002813,2]
[311805715,1705420263355,-3000.0,0.0002814,2]
[311805716,1705420263366,-3000.0,0.0002815,2]
[311805717,1705420263375,-151.0,0.0002815,7]
[311805718,1705420263385,-151.0,0.0002815,7]
[311805719,1705420263395,-180.414403,0.0002815,7]
[311805720,1705420263405,-3000.0,0.0002816,2]
[311805721,1705420263415,-3000.0,0.0002817,2]
[311805722,1705420263424,-3000.0,0.0002818,2]
[311805723,1705420263434,-10876.13,0.00028189,2]
[311805724,1705420263444,-3000.0,0.0002819,2]
[311805725,1705420263454,-500.0,0.00028192,2]
[311805726,1705420263463,-500.0,0.00028192,2]
[311805727,1705420263473,-1000.0,0.000282,2]
[311805728,1705420263482,-151.0,0.000282,2]
[311805729,1705420263492,-394.0,0.000282,2]
[311805730,1705420263501,-3000.0,0.000282,2]
[311805731,1705420263510,-3000.0,0.0002821,2]
[311805732,1705420263520,-3000.0,0.0002822,2]
[311805733,1705420263530,-3000.0,0.0002823,2]
[311805734,1705420263540,-3000.0,0.0002824,2]
[311805735,1705420263549,-3000.0,0.0002825,2]
[311805736,1705420263559,-3000.0,0.0002826,2]
[311805737,1705420263569,-3000.0,0.0002827,2]
[311805738,1705420263579,-1663.63,0.00028278,2]
[311805739,1705420263589,-3000.0,0.0002828,2]
[311805740,1705420263599,-2189.72,0.00028289,2]
[311805741,1705420263609,-3000.0,0.0002829,2]
[311805742,1705420263619,-3245.455191,0.000283,2]
[311805743,1705420263629,-167.0,0.00028307,2]
[311805744,1705420263639,-10876.13,0.00028347,2]
[311805745,1705420263648,-233.24,0.00028398,2]
[311805746,1705420263658,-152.0,0.0002842,6]
[311805747,1705420263667,-151.0,0.00028442,7]
[311805748,1705420263677,-484.549036,0.00028442,7]
[311805749,1705420263686,-484.549036,0.00028442,7]
[311805750,1705420263696,-151.0,0.00028442,7]
[311805751,1705420263706,-151.0,0.00028482,7]
[311805752,1705420263715,-150.0,0.00028493,2]
[311805753,1705420263725,-200.0,0.000285,2]
[311805754,1705420263735,-593.0,0.000285,17]
[311805755,1705420263745,-10876.13,0.00028505,2]
[311805756,1705420263755,-1663.63,0.00028552,2]
[311805757,1705420263765,-1000.0,0.00028595,2]
[311805758,1705420263774,-10000.0,0.00028646,2]
[311805759,1705420263784,-10876.13,0.00028664,2]
[311805760,1705420263794,-500.0,0.0002874,2]
[311805761,1705420263804,-1000.0,0.00028767,2]
[311805762,1705420263815,-1000.0,0.00028767,2]
[311805763,1705420263826,-823.15079259,0.00028767,2]
[311805764,1705420263836,-155.0,0.00028767,2]
[311805765,1705420263846,-3047.2878022,0.0002877,2]
[311805766,1705420263857,-60346.0043598,0.0002877,2]
[311805767,1705420263866,-4491.077334,0.0002877,2]
[311805768,1705420263875,-4688.3871054,0.0002877,2]
[311805769,1705420263886,-45617.8571906,0.0002877,2]
[311805770,1705420263895,-151.0,0.00028772,7]
[311805771,1705420263905,-256.510941,0.00028772,7]
[311805772,1705420263914,-348.486999,0.00028772,7]
[311805773,1705420263924,-348.486999,0.00028772,7]
[311805774,1705420263937,-151.0,0.00028772,7]
[311805775,1705420263946,-151.0,0.00028772,7]
[311805776,1705420263957,-815.783156,0.00028772,7]
[311805777,1705420263966,-815.783156,0.00028772,7]
[311805778,1705420263977,-548454.0,0.0002879,5]
[311805779,1705420263987,-151.0,0.0002879,7]
[311805780,1705420263998,-151.0,0.0002879,7]
[311805781,1705420264008,-151.0,0.0002879,2]
[311805782,1705420264017,-151.0,0.0002879,2]
[311805783,1705420264027,-237.330556,0.0002879,7]
[311805784,1705420264036,-237.330556,0.0002879,7]
[311805785,1705420264046,-227.182163,0.0002879,7]
[311805786,1705420264057,-227.182163,0.0002879,7]
[311805787,1705420264069,-151.0,0.0002879,7]
[311805788,1705420264078,-484.549036,0.0002879,7]
[311805789,1705420264089,-484.549036,0.0002879,7]
[311805790,1705420264099,-151.0,0.0002879,7]
[311805791,1705420264108,-151.0,0.0002879,7]
[311805792,1705420264119,-151.0,0.0002879,7]
[311805793,1705420264130,-151.0,0.0002879,7]
[311805794,1705420264140,-262094.78,0.00028792,4]
[311805795,1705420264152,-151.0,0.00028792,7]
[311805796,1705420264162,-151.0,0.00028792,7]
[311805797,1705420264171,-348.486999,0.00028792,7]
[311805798,1705420264181,-348.486999,0.00028792,7]
[311805799,1705420264190,-294.969914,0.00028792,7]
[311805800,1705420264211,-191.744505,0.00028792,7]
[311805801,1705420264235,-815.783156,0.00028792,7]
[311805802,1705420264244,-815.783156,0.00028792,7]
[311805803,1705420264254,-103317.47399298,0.000288,3]
[311805804,1705420264263,-8000.0,0.000288,2]
[311805805,1705420264272,-750.0,0.000288,2]
[311805806,1705420264281,-10876.13,0.00028822,2]
[311805807,1705420264291,-1663.63,0.00028826,2]
[311805808,1705420264301,-152.0,0.00028865,7]
[311805809,1705420264312,-179.0,0.00028978,2]
[311805810,1705420264326,-705.788,0.00028989,2]
[311805811,1705420264338,-835.0,0.00028989,2]
[311805812,1705420264350,-945.0,0.00028989,2]
[311805813,1705420264358,-369.197,0.00028989,2]
[311805814,1705420264370,-1221.692,0.00028989,2]
[311805815,1705420264379,-877.0,0.00028989,2]
[311805816,1705420264389,-319.0,0.00028989,2]
[311805817,1705420264398,-2904.0,0.00028989,2]
[311805818,1705420264407,-19697.0,0.00028989,2]
[311805819,1705420264417,-2272.0,0.00028989,2]
[311805820,1705420264426,-150.0,0.00028989,2]
[311805821,1705420264435,-1029.0,0.00028989,2]
[311805822,1705420264444,-155.12838537,0.00029,2]
[311805823,1705420264453,-326.05445796,0.00029,2]
[311805824,1705420264464,-2000.0,0.00029,2]
[311805825,1705420264473,-300.0,0.00029,30]
[311805826,1705420264483,-2000.0,0.00029,2]
[311805827,1705420264492,-1350.0,0.00029,3]
[311805828,1705420264501,-593.0,0.00029,17]
[311805829,1705420264510,-141051.7651,0.00029,2]
[311805830,1705420264521,-300.0,0.00029,2]
[311805831,1705420264531,-150.0,0.00029,2]
[311805832,1705420264541,-5605.28,0.00029009,2]
[311805833,1705420264550,-150.0,0.00029041,2]
[311805834,1705420264559,-153.412515,0.00029066,2]
[311805835,1705420264571,-154.060816,0.00029066,2]
[311805836,1705420264580,-405.762548,0.00029066,2]
[311805837,1705420264589,-173.021073,0.00029066,2]
[311805838,1705420264599,-194.599356,0.00029066,2]
[311805839,1705420264608,-157.444351,0.00029066,2]
[311805840,1705420264617,-390.449841,0.00029066,2]
[311805841,1705420264626,-152.062218,0.00029066,2]
[311805842,1705420264636,-375.463967,0.00029066,2]
[311805843,1705420264645,-184.948627,0.00029066,2]
[311805844,1705420264656,-258.619881,0.00029066,2]
[311805845,1705420264665,-202.749623,0.00029066,2]
[311805846,1705420264675,-250.309312,0.00029066,2]
[311805847,1705420264684,-1534.585124,0.00029066,2]
[311805848,1705420264693,-1712.035141,0.00029066,2]
[311805849,1705420264703,-3621.497466,0.00029066,2]
[311805850,1705420264713,-182.98051,0.00029066,2]
[311805851,1705420264722,-196.942968,0.00029066,2]
[311805852,1705420264732,-749.69,0.00029086,2]
[311805853,1705420264741,-1663.76714107,0.00029099,2]
[311805854,1705420264750,-74599.30955008,0.000291,2]
[311805855,1705420264759,-2000.0,0.000291,2]
[311805856,1705420264769,-369.87770319,0.00029111,2]
[311805857,1705420264779,-4905.42373496,0.00029199,2]
[311805858,1705420264788,-500.0,0.00029228,2]
[311805859,1705420264797,-462.35,0.00029247,2]
[311805860,1705420264807,-220.0,0.0002927,2]
[311805861,1705420264816,-219.0,0.0002927,2]
[311805862,1705420264827,-500.0,0.00029288,2]
[311805863,1705420264836,-500.0,0.00029288,2]
[311805864,1705420264845,-151.0,0.000293,2]
[311805865,1705420264854,-394.0,0.000293,2]
[311805866,1705420264863,-152.0,0.0002931,8]
[311805867,1705420264872,-154.060816,0.00029429,2]
[311805868,1705420264881,-405.762548,0.00029429,2]
[311805869,1705420264890,-390.449841,0.00029429,2]
[311805870,1705420264899,-375.463967,0.00029429,2]
[311805871,1705420264909,-258.619881,0.00029429,2]
[311805872,1705420264918,-250.309312,0.00029429,2]
[311805873,1705420264928,-1534.585124,0.00029429,2]
[311805874,1705420264938,-1712.035141,0.00029429,2]
[311805875,1705420264948,-3621.497466,0.00029429,2]
[311805876,1705420264958,-205.0,0.0002943,12]
[311805877,1705420264968,-19105.41040405,0.000295,3]
[311805878,1705420264978,-593.0,0.000295,18]
[311805879,1705420264990,-152.062218,0.0002955,2]
[311805880,1705420265001,-150.0,0.00029589,2]
[311805881,1705420265010,-281.14819926,0.0002963,2]
[311805882,1705420265020,-281.14819926,0.00029669,2]
[311805883,1705420265029,-672.06,0.00029716,2]
[311805884,1705420265039,-242.33,0.00029729,2]
[311805885,1705420265049,-160.43807625,0.00029743,2]
[311805886,1705420265059,-700.0,0.00029748,3]
[311805887,1705420265070,-152.0,0.00029755,9]
[311805888,1705420265079,-281.14819926,0.00029762,2]
[311805889,1705420265088,-154.060816,0.00029792,2]
[311805890,1705420265098,-405.762548,0.00029792,2]
[311805891,1705420265108,-390.449841,0.00029792,2]
[311805892,1705420265117,-375.463967,0.00029792,2]
[311805893,1705420265127,-258.619881,0.00029792,2]
[311805894,1705420265136,-250.309312,0.00029792,2]
[311805895,1705420265145,-1534.585124,0.00029792,2]
[311805896,1705420265155,-1712.035141,0.00029792,2]
[311805897,1705420265165,-3621.497466,0.00029792,2]
[311805898,1705420265174,-807.743,0.00029799,4]
[311805899,1705420265184,-807.744,0.00029799,4]
[311805900,1705420265195,-807.744,0.00029799,4]
[311805901,1705420265205,-807.744,0.00029799,4]
[311805902,1705420265214,-807.744,0.00029799,4]
[311805903,1705420265224,-152.17208897,0.00029799,2]
[311805904,1705420265235,-175.32047182,0.000298,2]
[311805905,1705420265244,-47594.53389329,0.000298,2]
[311805906,1705420265255,-1000.0,0.000298,5]
[311805907,1705420265264,-281.14819926,0.00029803,2]
[311805908,1705420265274,-160.43807625,0.00029808,2]
[311805909,1705420265284,-160.43807625,0.00029812,2]
[311805910,1705420265294,-500.0,0.00029836,2]
[311805911,1705420265305,-160.51388107,0.00029838,2]
[311805912,1705420265314,-152.17208897,0.00029891,2]
[311805913,1705420265326,-152.17208897,0.00029895,2]
[311805914,1705420265336,-10000.0,0.00029896,2]
[311805915,1705420265346,-151.0,0.00029899,7]
[311805916,1705420265356,-151.0,0.00029899,7]
[311805917,1705420265367,-151.0,0.00029899,2]
[311805918,1705420265377,-301.539481,0.00029899,2]
[311805919,1705420265388,-237.330556,0.00029899,7]
[311805920,1705420265399,-237.330556,0.00029899,7]
[311805921,1705420265409,-227.182163,0.00029899,7]
[311805922,1705420265509,-227.182163,0.00029899,7]
[311805923,1705420265519,-285.16543,0.00029899,7]
[311805924,1705420265529,-71080.20800539,0.000299,2]
[311805925,1705420265539,-6151.1086672,0.000299,2]
[311805926,1705420265548,-3662.36418442,0.0002996,2]
[311805927,1705420265558,-151.0,0.00029977,7]
[311805928,1705420265568,-151.0,0.00029977,7]
[311805929,1705420265578,-73429.11706428,0.00029977,2]
[311805930,1705420265587,-171779.13893196,0.0002998,2]
[311805931,1705420265597,-2695323.09786481,0.0002998,2]
[311805932,1705420265606,-151.0,0.0002998,2]
[311805933,1705420265616,-237.330556,0.0002998,7]
[311805934,1705420265626,-237.330556,0.0002998,7]
[311805935,1705420265635,-227.182163,0.0002998,7]
[311805936,1705420265644,-227.182163,0.0002998,7]
[311805937,1705420265655,-151.0,0.0002998,7]
[311805938,1705420265665,-151.0,0.0002998,7]
[311805939,1705420265675,-348.486999,0.0002998,7]
[311805940,1705420265685,-348.486992,0.0002998,7]
[311805941,1705420265695,-815.783156,0.0002998,7]
[311805942,1705420265705,-815.783152,0.0002998,7]
[311805943,1705420265714,-151.0,0.0002998,7]
[311805944,1705420265724,-151.0,0.0002998,7]
[311805945,1705420265734,-484.549036,0.0002998,7]
[311805946,1705420265743,-484.549036,0.0002998,7]
[311805947,1705420265753,-484.549036,0.0002998,7]
[311805948,1705420265763,-484.549036,0.0002998,7]
[311805949,1705420265773,-151.0,0.0002998,7]
[311805950,1705420265783,-151.0,0.0002998,7]
[311805951,1705420265793,-500.0,0.00029987,2]
[311805952,1705420265802,-100000.0,0.0003,2]
[311805953,1705420265812,-652.9121926,0.0003,4]
[311805954,1705420265823,-155.0,0.0003,4]
[311805955,1705420265833,-72867.95281422,0.0003,4]
[311805956,1705420265843,-445.8653535,0.0003,4]
[311805957,1705420265852,-462.13895835,0.0003,4]
[311805958,1705420265862,-155.0,0.0003,4]
[311805959,1705420265872,-1000.0,0.0003,3]
[311805960,1705420265882,-206517.21110229,0.0003,2]
[311805961,1705420265892,-70088.85872413,0.0003,4]
[311805962,1705420265902,-813.58442188,0.0003,4]
[311805963,1705420265912,-19012.00563948,0.0003,4]
[311805964,1705420265922,-169.86579945,0.0003,4]
[311805965,1705420265931,-5194.3692572,0.0003,2]
[311805966,1705420265941,-1500.0,0.0003,7]
[311805967,1705420265951,-904.77027784,0.0003,4]
[311805968,1705420265961,-444.62318232,0.0003,4]
[311805969,1705420265971,-107686.54453073,0.0003,3]
[311805970,1705420265983,-770.11246921,0.0003,2]
[311805971,1705420265995,-1578.52030336,0.0003,2]
[311805972,1705420266008,-581.92014557,0.0003,2]
[311805973,1705420266018,-9627.24499354,0.0003,2]
[311805974,1705420266027,-691.34845937,0.0003,2]
[311805975,1705420266037,-40683.91687046,0.0003,2]
[311805976,1705420266046,-18115.07170656,0.0003,5]
[311805977,1705420266056,-960.31,0.0003,2]
[311805978,1705420266065,-155.0,0.0003,4]
[311805979,1705420266076,-7364.15,0.0003,2]
[311805980,1705420266087,-17529.65974994,0.0003,2]
[311805981,1705420266097,-1010.0,0.0003,3]
[311805982,1705420266107,-1001.0,0.0003,3]
[311805983,1705420266116,-597.0,0.0003,2]
[311805984,1705420266126,-10000.0,0.0003,2]
[311805985,1705420266136,-11551.4668915,0.0003,3]
[311805986,1705420266145,-2500.0,0.0003,2]
[311805987,1705420266155,-371.08443669,0.0003,2]
[311805988,1705420266165,-324.13449788,0.0003,2]
[311805989,1705420266175,-300.0,0.0003,31]
[311805990,1705420266184,-1000.0,0.0003,2]
[311805991,1705420266196,-5001.0,0.0003,2]
[311805992,1705420266207,-2278.0,0.0003,10]
[311805993,1705420266218,-2000.0,0.0003,2]
[311805994,1705420266228,-2000.0,0.0003,2]
[311805995,1705420266238,-2000.0,0.0003,2]
[311805996,1705420266248,-2000.0,0.0003,2]
[311805997,1705420266259,-2000.0,0.0003,2]
[311805998,1705420266269,-2000.0,0.0003,2]
[311805999,1705420266279,-1404.22394193,0.0003,4]
[311806000,1705420266290,-6875.57409921,0.0003,4]
[311806001,1705420266301,-303154.45916555,0.0003,4]
[311806002,1705420266312,-1058.87182491,0.0003,2]
[311806003,1705420266324,-311.36282004,0.0003,2]
[311806004,1705420266334,-2000.0,0.0003,2]
[311806005,1705420266344,-191080.5759334,0.0003,2]
[311806006,1705420266354,-4000.0,0.0003,2]
[311806007,1705420266367,-1305.0,0.0003,6]
[311806008,1705420266380,-209.51899347,0.0003,4]
[311806009,1705420266391,-310.24921222,0.0003,7]
[311806010,1705420266402,-1697.88520098,0.0003,7]
[311806011,1705420266415,-24076.45749194,0.0003,4]
[311806012,1705420266426,-542520.39505693,0.0003,2]
[311806013,1705420266437,-9999.99999901,0.0003,2]
[311806014,1705420266447,-218.10131934,0.0003,7]
[311806015,1705420266457,-593.0,0.0003,18]
[311806016,1705420266468,-680.55281746,0.0003,4]
[311806017,1705420266479,-151.0,0.0003,2]
[311806018,1705420266490,-237.330556,0.0003,7]
[311806019,1705420266501,-237.330546,0.0003,7]
[311806020,1705420266511,-227.182163,0.0003,7]
[311806021,1705420266522,-227.182172,0.0003,7]
[311806022,1705420266533,-400.39344309,0.0003,11]
[311806023,1705420266544,-400.39344309,0.0003,9]
[311806024,1705420266556,-400.39344309,0.0003,9]
[311806025,1705420266567,-400.39344309,0.0003,11]
[311806026,1705420266579,-400.39344309,0.0003,9]
[311806027,1705420266592,-400.39344309,0.0003,10]
[311806028,1705420266605,-400.39344309,0.0003,10]
[311806029,1705420266616,-400.39344309,0.0003,11]
[311806030,1705420266627,-400.39344309,0.0003,10]
[311806031,1705420266638,-400.39344309,0.0003,11]
[311806032,1705420266648,-400.39344309,0.0003,10]
[311806033,1705420266659,-400.39344309,0.0003,10]
[311806034,1705420266669,-400.39344309,0.0003,11]
[311806035,1705420266680,-400.39344309,0.0003,9]
[311806036,1705420266692,-400.39344309,0.0003,10]
[311806037,1705420266702,-400.39344309,0.0003,8]
[311806038,1705420266713,-400.39344309,0.0003,8]
[311806039,1705420266723,-400.39344309,0.0003,9]
[311806040,1705420266734,-400.39344309,0.0003,12]
[311806041,1705420266745,-400.39344309,0.0003,10]
[311806042,1705420266756,-400.39344309,0.0003,9]
[311806043,1705420266767,-400.39344309,0.0003,9]
[311806044,1705420266777,-400.39344309,0.0003,12]
[311806045,1705420266789,-400.39344309,0.0003,10]
[311806046,1705420266799,-400.39344309,0.0003,12]
[311806047,1705420266810,-400.39344309,0.0003,10]
[311806048,1705420266821,-400.39344309,0.0003,10]
[311806049,1705420266831,-400.39344309,0.0003,9]
[311806050,1705420266842,-400.39344309,0.0003,10]
[311806051,1705420266853,-400.39344309,0.0003,9]
[311806052,1705420266864,-400.39344309,0.0003,10]
[311806053,1705420266875,-400.39344309,0.0003,12]
[311806054,1705420266886,-400.39344309,0.0003,12]
[311806055,1705420266897,-400.39344309,0.0003,12]
[311806056,1705420266911,-400.39344309,0.0003,9]
[311806057,1705420266930,-400.39344309,0.0003,11]
[311806058,1705420266940,-400.39344309,0.0003,8]
[311806059,1705420266950,-400.39344309,0.0003,10]
[311806060,1705420266960,-400.39344309,0.0003,11]
[311806061,1705420266970,-400.39344309,0.0003,11]
[311806062,1705420266979,-400.39344309,0.0003,10]
[311806063,1705420266989,-400.39344309,0.0003,11]
[311806064,1705420266999,-400.39344309,0.0003,12]
[311806065,1705420267009,-400.39344309,0.0003,10]
[311806066,1705420267018,-400.39344309,0.0003,12]
[311806067,1705420267028,-400.39344309,0.0003,9]
[311806068,1705420267037,-400.39344309,0.0003,9]
[311806069,1705420267047,-400.39344309,0.0003,10]
[311806070,1705420267057,-400.39344309,0.0003,10]
[311806071,1705420267067,-400.39344309,0.0003,9]
[311806072,1705420267078,-635.61130531,0.0003,4]
[311806073,1705420267087,-2014.18,0.0003,2]
[311806074,1705420267096,-500.0,0.0003,2]
[311806075,1705420267105,-1299.2570832,0.0003,2]
[311806076,1705420267115,-200.0,0.0003,2]
[311806077,1705420267124,-152.08,0.0003,2]
[311806078,1705420267134,-152.08,0.0003,2]
[311806079,1705420267144,-152.08,0.0003,2]
[311806080,1705420267154,-152.08,0.0003,2]
[311806081,1705420267163,-152.08,0.0003,2]
[311806082,1705420267172,-152.08,0.0003,2]
[311806083,1705420267182,-157.78,0.0003,2]
[311806084,1705420267196,-157.78,0.0003,2]
[311806085,1705420267206,-157.78,0.0003,2]
[311806086,1705420267216,-157.78,0.0003,2]
[311806087,1705420267226,-157.78,0.0003,2]
[311806088,1705420267238,-157.78,0.0003,2]
[311806089,1705420267248,-3000.0,0.0003,2]
[311806090,1705420267268,-3000.0,0.0003,2]
[311806091,1705420267277,-150.0,0.0003,2]
[311806092,1705420267287,-3000.0,0.0003,2]
[311806093,1705420267297,-3000.0,0.0003,2]
[311806094,1705420267306,-3000.0,0.0003,2]
[311806095,1705420267316,-3000.0,0.0003,2]
[311806096,1705420267333,-300.0,0.0003,2]
[311806097,1705420267343,-1000.0,0.0003,2]
[311806098,1705420267352,-202.0,0.0003,2]
[311806099,1705420267361,-300.18,0.0003,2]
[311806100,1705420267370,-1000.0,0.0003,2]
[311806101,1705420267379,-150.0,0.0003,2]
[311806102,1705420267402,-250.0,0.0003,2]
[311806103,1705420267411,-1000.0,0.00030028,7]
[311806104,1705420267421,-152.062218,0.00030034,2]
[311806105,1705420267430,-160.43807625,0.00030062,7]
[311806106,1705420267441,-749.69,0.00030064,2]
[311806107,1705420267452,-281.14819926,0.00030065,7]
[311806108,1705420267462,-152.17208897,0.00030065,7]
[311806109,1705420267472,-156813.67452157,0.000301,2]
[311806110,1705420267483,-3417.00773658,0.000301,3]
[311806111,1705420267492,-400.0,0.000301,2]
[311806112,1705420267503,-212.879999,0.000301,15]
[311806113,1705420267516,-16653.08665136,0.000301,2]
[311806114,1705420267526,-252.2748508,0.000301,4]
[311806115,1705420267536,-2812.39466919,0.000301,2]
[311806116,1705420267546,-4742.07012969,0.000301,4]
[311806117,1705420267556,-309.22861507,0.000301,4]
[311806118,1705420267565,-2000.0,0.000301,2]
[311806119,1705420267576,-556.76345391,0.000301,30]
[311806120,1705420267585,-8000.0,0.000301,2]
[311806121,1705420267594,-1000.0,0.000301,2]
[311806122,1705420267604,-177.63074677,0.00030112,7]
[311806123,1705420267620,-281.14819926,0.00030125,7]
[311806124,1705420267630,-160.51388107,0.00030126,7]
[311806125,1705420267639,-281.14819926,0.00030133,7]
[311806126,1705420267649,-13555.31,0.00030137,2]
[311806127,1705420267658,-153.84,0.00030137,2]
[311806128,1705420267668,-155.0,0.00030137,2]
[311806129,1705420267677,-150.0,0.00030137,2]
[311806130,1705420267688,-154.060816,0.00030155,2]
[311806131,1705420267698,-405.762548,0.00030155,2]
[311806132,1705420267707,-390.449841,0.00030155,2]
[311806133,1705420267717,-375.463967,0.00030155,2]
[311806134,1705420267727,-258.619881,0.00030155,2]
[311806135,1705420267737,-250.309312,0.00030155,2]
[311806136,1705420267747,-1534.585124,0.00030155,2]
[311806137,1705420267756,-1712.035141,0.00030155,2]
[311806138,1705420267772,-3621.497466,0.00030155,2]
[311806139,1705420267782,-152.0,0.000302,10]
[311806140,1705420267791,-1000.0,0.000302,2]
[311806141,1705420267810,-160.51388107,0.00030202,7]
[311806142,1705420267819,-3101.8985011,0.0003025,14]
[311806143,1705420267838,-682.58768049,0.0003025,4]
[311806144,1705420267848,-160.43807625,0.00030279,7]
[311806145,1705420267858,-383.646281,0.00030287,2]
[311806146,1705420267867,-316.825341,0.00030287,2]
[311806147,1705420267877,-783.97912,0.00030287,2]
[311806148,1705420267886,-175.258247,0.00030287,2]
[311806149,1705420267896,-172.567295,0.00030287,2]
[311806150,1705420267906,-156.617151,0.00030287,2]
[311806151,1705420267915,-3083.50584,0.00030287,2]
[311806152,1705420267925,-322.396434,0.00030287,2]
[311806153,1705420267938,-171.397115,0.00030287,2]
[311806154,1705420267947,-182.410196,0.00030287,2]
[311806155,1705420267958,-589.631837,0.00030287,2]
[311806156,1705420267968,-1502.644202,0.00030287,2]
[311806157,1705420267977,-246.334442,0.00030287,2]
[311806158,1705420267987,-184.92366,0.00030287,2]
[311806159,1705420267996,-375.387887,0.00030287,2]
[311806160,1705420268005,-171.921236,0.00030287,2]
[311806161,1705420268014,-1001.762801,0.00030287,2]